bitfinex/quotes_BTCUSD_20230404
["timestamp","ask_amount","ask_price","bid_price","bid_amount"]
[1680613324077,0.027,28257.0,28256.0,0.46251827]
[1680613324300,0.027,28257.0,28256.0,0.6883812]
[1680613325305,0.027,28257.0,28256.0,0.58000216]
[1680613325503,0.027,28257.0,28256.0,0.45290125]
[1680613325675,0.027,28257.0,28256.0,0.44557025]
[1680613325885,0.027,28257.0,28256.0,0.45343225]
[1680613326903,0.027,28257.0,28256.0,0.44557025]
[1680613327121,0.027,28257.0,28256.0,0.45281825]
[1680613327334,0.0689888,28257.0,28256.0,0.45281825]
[1680613327554,0.0689888,28257.0,28256.0,0.44557025]
[1680613328427,0.0689888,28257.0,28256.0,0.13866389]
[1680613328653,0.49513556,28257.0,28256.0,0.05418]
[1680613328875,0.49513556,28257.0,28256.0,0.02118]
[1680613329097,0.84984612,28257.0,28256.0,0.02106]
[1680613329391,0.84984612,28257.0,28256.0,0.021]
[1680613331449,0.90321812,28257.0,28256.0,0.021]
[1680613332335,0.84984612,28257.0,28256.0,0.021]
[1680613332557,0.90149512,28257.0,28256.0,0.021]
[1680613332783,0.54052536,28257.0,28256.0,0.021]
[1680613333003,0.0689888,28257.0,28256.0,0.021]
[1680613333490,0.0689888,28257.0,28256.0,0.0612]
[1680613335076,0.52258239,28257.0,28256.0,0.0612]
[1680613337560,0.52965939,28257.0,28256.0,0.0612]
[1680613338843,0.58005939,28257.0,28256.0,0.0612]
[1680613339284,0.57298239,28257.0,28256.0,0.0612]
[1680613340004,0.58005939,28257.0,28256.0,0.0612]
[1680613342236,0.93476995,28257.0,28256.0,0.0612]
[1680613346008,0.93476995,28257.0,28256.0,0.021]
[1680613346249,0.93476995,28257.0,28256.0,0.0687]
[1680613346468,0.93476995,28257.0,28256.0,0.021]
[1680613350763,0.99286995,28257.0,28256.0,0.10548389]
[1680613351442,0.94246995,28257.0,28256.0,0.10548389]
[1680613352095,0.99410995,28257.0,28256.0,0.10548389]
[1680613352537,0.99410995,28257.0,28256.0,0.34034045]
[1680613352753,0.99410995,28257.0,28256.0,0.34052045]
[1680613353849,0.99410995,28257.0,28256.0,0.23295678]
[1680613354107,0.99410995,28257.0,28256.0,0.10573587]
[1680613354331,0.99410995,28257.0,28256.0,0.10567587]
[1680613354789,0.99410995,28257.0,28256.0,0.14810091]
[1680613355225,0.99410995,28257.0,28256.0,0.34068092]
[1680613355394,0.99410995,28257.0,28256.0,0.14828091]
[1680613355619,0.99410995,28257.0,28256.0,0.34068092]
[1680613355829,0.99410995,28257.0,28256.0,0.34086092]
[1680613355997,0.99410995,28257.0,28256.0,0.34080092]
[1680613356199,0.99410995,28257.0,28256.0,0.2329301]
[1680613356520,0.99410995,28257.0,28256.0,0.34082976]
[1680613356933,0.99410995,28257.0,28256.0,0.5102902]
[1680613357127,0.96161891,28257.0,28256.0,0.5102302]
[1680613357356,0.96161891,28257.0,28256.0,0.021]
[1680613358116,1.26776518,28257.0,28256.0,0.021]
[1680613358325,0.96136795,28257.0,28256.0,0.01759469]
[1680613358529,0.93436795,28257.0,28256.0,0.01759469]
[1680613358969,0.84051636,28257.0,28256.0,0.01759469]
[1680613359382,1.13537133,28257.0,28256.0,0.01759469]
[1680613359776,1.10837133,28257.0,28256.0,0.01759469]
[1680613360131,0.79852756,28257.0,28256.0,0.01759469]
[1680613360310,1.17476175,28257.0,28256.0,0.01759469]
[1680613361907,1.21005301,28257.0,28256.0,0.01759469]
[1680613363824,0.91005301,28257.0,28256.0,0.01759469]
[1680613364033,0.87476175,28257.0,28256.0,0.01759469]
[1680613365623,0.92398005,28257.0,28256.0,0.01759469]
[1680613375975,0.87234005,28257.0,28256.0,0.01759469]
[1680613376840,0.92576605,28257.0,28256.0,0.01759469]
[1680613377073,0.87234005,28257.0,28256.0,0.01759469]
[1680613377290,0.92278705,28257.0,28256.0,0.01759469]
[1680613378887,0.44688756,28257.0,28256.0,0.01759469]
[1680613379109,0.38878756,28257.0,28256.0,0.01759469]
[1680613379559,0.38878756,28257.0,28256.0,0.01777469]
[1680613379776,0.44078156,28257.0,28256.0,0.01759469]
[1680613379995,0.44078156,28257.0,28256.0,0.01765469]
[1680613380217,0.44013556,28257.0,28256.0,0.01765469]
[1680613380856,0.44003893,28257.0,28256.0,0.01759469]
[1680613381121,0.43683493,28257.0,28256.0,0.01759469]
[1680613383380,0.8034347,28257.0,28256.0,0.01759469]
[1680613383603,0.8105117,28257.0,28256.0,0.01759469]
[1680613390736,0.8686117,28257.0,28256.0,0.01759469]
[1680613396353,0.8204677,28257.0,28256.0,0.01759469]
[1680613396571,0.8204677,28257.0,28256.0,0.10234679]
[1680613396572,0.7623677,28257.0,28256.0,0.10234679]
[1680613396792,0.7623677,28257.0,28256.0,0.10240679]
[1680613397915,0.7623677,28257.0,28256.0,0.01765469]
[1680613398139,0.7623677,28257.0,28256.0,0.01759469]
[1680613398361,0.38161393,28257.0,28256.0,0.10234679]
[1680613398574,0.38869093,28257.0,28256.0,0.2295077]
[1680613398826,0.38869093,28257.0,28256.0,0.2296277]
[1680613399493,0.38869093,28257.0,28256.0,0.1448756]
[1680613399715,0.8037975,28257.0,28256.0,0.33572627]
[1680613400431,0.8037975,28257.0,28256.0,0.22971984]
[1680613400863,0.8563925,28257.0,28256.0,0.22971984]
[1680613401054,0.8545655,28257.0,28256.0,0.10261893]
[1680613401320,0.8037975,28257.0,28256.0,0.22959984]
[1680613401548,0.8037975,28257.0,28256.0,0.33580011]
[1680613403616,0.8556395,28257.0,28256.0,0.33580011]
[1680613403838,0.8037975,28257.0,28256.0,0.31433604]
[1680613404077,0.8037975,28257.0,28256.0,0.33580011]
[1680613405420,0.8540345,28257.0,28256.0,0.33580011]
[1680613405613,0.8037975,28257.0,28256.0,0.33580011]
[1680613408990,0.8547155,28257.0,28256.0,0.33580011]
[1680613409187,0.8037975,28257.0,28256.0,0.33580011]
[1680613409407,0.8565155,28257.0,28256.0,0.33580011]
[1680613410278,0.8037975,28257.0,28256.0,0.33580011]
[1680613412316,0.8541665,28257.0,28256.0,0.33580011]
[1680613412531,0.89185611,28257.0,28256.0,0.33580011]
[1680613414057,0.89185611,28257.0,28256.0,0.22976016]
[1680613414273,0.89185611,28257.0,28256.0,0.10253925]
[1680613414274,0.53524954,28257.0,28256.0,0.10253925]
[1680613414492,0.53524954,28257.0,28256.0,0.01759469]
[1680613414710,0.83524954,28257.0,28256.0,0.10247925]
[1680613414928,0.8355005,28257.0,28256.0,0.10247925]
[1680613415162,1.42436215,28257.0,28256.0,0.10247925]
[1680613416569,1.22436215,28257.0,28256.0,0.10247925]
[1680613419971,0.92436215,28257.0,28256.0,0.10247925]
[1680613420170,0.87399315,28257.0,28256.0,0.22958016]
[1680613420374,0.87399315,28257.0,28256.0,0.225774]
[1680613420752,0.81549315,28257.0,28256.0,0.09867309]
[1680613421178,0.81549315,28257.0,28256.0,0.225774]
[1680613421398,0.81524219,28257.0,28256.0,0.225834]
[1680613422027,0.81524219,28257.0,28256.0,0.09873309]
[1680613422231,0.81524219,28257.0,28256.0,0.225774]
[1680613422359,0.81524219,28257.0,28256.0,0.09873309]
[1680613422600,0.81524219,28257.0,28256.0,0.09867309]
[1680613422802,0.81524219,28257.0,28256.0,0.225774]
[1680613423025,0.81524219,28257.0,28256.0,0.09885309]
[1680613423244,0.81524219,28257.0,28256.0,0.09873309]
[1680613424383,1.02241579,28257.0,28255.0,0.00018]
[1680613424604,1.13696456,28256.0,28254.0,0.021]
[1680613424825,0.88508456,28255.0,28254.0,0.021]
[1680613425502,0.88508456,28255.0,28254.0,0.01726425]
[1680613425720,0.88533552,28255.0,28254.0,0.01726425]
[1680613426424,0.92093185,28255.0,28254.0,0.01368552]
[1680613426644,0.94787185,28255.0,28254.0,0.01368552]
[1680613427537,0.94787185,28255.0,28254.0,0.0100599]
[1680613428399,0.94787185,28255.0,28254.0,0.00655338]
[1680613429063,1.24787185,28255.0,28254.0,0.00655338]
[1680613429278,1.22087185,28255.0,28254.0,0.00655338]
[1680613429505,1.18508456,28255.0,28254.0,0.00655338]
[1680613429725,1.21208456,28255.0,28254.0,0.00655338]
[1680613430186,1.36124591,28255.0,28254.0,0.00655338]
[1680613430402,1.36974591,28255.0,28254.0,0.00655338]
[1680613430652,1.36999687,28255.0,28254.0,0.00655338]
[1680613432003,1.34299687,28255.0,28254.0,0.00655338]
[1680613432441,1.36999687,28255.0,28254.0,0.00655338]
[1680613432654,2.64411338,28255.0,28254.0,0.00655338]
[1680613433317,3.34411338,28255.0,28254.0,0.00655338]
[1680613433534,2.06999687,28255.0,28254.0,0.00655338]
[1680613434211,2.07031812,28255.0,28254.0,0.00655338]
[1680613437093,2.21188512,28255.0,28254.0,0.00655338]
[1680613440391,2.21188512,28255.0,28254.0,0.01367004]
[1680613441712,2.18488512,28255.0,28254.0,0.01367004]
[1680613441924,2.21188512,28255.0,28254.0,0.01367004]
[1680613442181,1.48488512,28255.0,28254.0,0.01367004]
[1680613442406,1.51188512,28255.0,28254.0,0.01367004]
[1680613442835,1.79755376,28255.0,28254.0,0.01367004]
[1680613443055,1.22115677,28255.0,28254.0,0.01367004]
[1680613445079,1.22090581,28255.0,28254.0,0.00493423]
[1680613447624,1.05941524,28255.0,28254.0,0.00493423]
[1680613449463,0.5713,28254.0,28253.0,0.0231]
[1680613449684,1.26320536,28254.0,28253.0,0.0231]
[1680613450049,1.06320536,28254.0,28253.0,0.0231]
[1680613450702,1.09020536,28254.0,28253.0,0.0231]
[1680613451792,1.49107596,28254.0,28253.0,0.0231]
[1680613451994,1.43247596,28254.0,28253.0,0.0231]
[1680613452861,1.06117596,28254.0,28253.0,0.0231]
[1680613453063,0.30773136,28254.0,28253.0,0.0231]
[1680613453411,0.30773136,28254.0,28253.0,0.02328]
[1680613454078,0.30801986,28254.0,28253.0,0.0231]
[1680613454520,0.30801986,28254.0,28253.0,0.02328]
[1680613456331,0.66343133,28254.0,28253.0,0.02328]
[1680613457449,0.66343133,28254.0,28253.0,0.0231]
[1680613457646,0.71523333,28254.0,28253.0,0.02316]
[1680613458106,0.66343133,28254.0,28253.0,0.02316]
[1680613458545,0.71434233,28254.0,28253.0,0.02316]
[1680613460294,0.71434233,28254.0,28253.0,0.0231]
[1680613460729,0.78833086,28254.0,28253.0,0.0231]
[1680613460944,1.17559642,28254.0,28253.0,0.0231]
[1680613461161,1.12556303,28254.0,28253.0,0.0231]
[1680613461390,0.78907012,28254.0,28253.0,0.0231]
[1680613461830,1.19712982,28254.0,28253.0,0.0231]
[1680613462040,1.20963389,28254.0,28253.0,0.0231]
[1680613462252,0.78907012,28254.0,28253.0,0.0231]
[1680613463167,0.87173814,28254.0,28253.0,0.0231]
[1680613463382,1.19794641,28254.0,28253.0,0.0231]
[1680613467108,0.76854641,28254.0,28253.0,0.0231]
[1680613472577,0.8089461,28254.0,28253.0,0.01906003]
[1680613473419,0.8089461,28254.0,28253.0,0.01508739]
[1680613473645,0.7819461,28254.0,28253.0,0.01508739]
[1680613474338,0.40006981,28254.0,28253.0,0.01109502]
[1680613474573,0.74532684,28254.0,28253.0,0.01109502]
[1680613475410,0.74532684,28254.0,28253.0,0.00716919]
[1680613476382,0.74532684,28254.0,28253.0,0.00330879]
[1680613477573,0.3574685,28253.0,28252.0,0.0231]
[1680613477802,0.70165913,28253.0,28252.0,0.0231]
[1680613478020,0.65248213,28253.0,28252.0,0.0231]
[1680613478471,0.68606055,28253.0,28252.0,0.0231]
[1680613478927,0.73901455,28253.0,28252.0,0.0231]
[1680613479174,0.76601455,28253.0,28252.0,0.0231]
[1680613482641,0.71306055,28253.0,28252.0,0.0231]
[1680613483121,0.71340339,28253.0,28252.0,0.0231]
[1680613487344,0.76416339,28253.0,28252.0,0.0231]
[1680613489563,0.71340339,28253.0,28252.0,0.0231]
[1680613489934,0.76314839,28253.0,28252.0,0.0231]
[1680613490355,0.71340339,28253.0,28252.0,0.0231]
[1680613490766,0.76564839,28253.0,28252.0,0.0231]
[1680613491157,0.71340339,28253.0,28252.0,0.0231]
[1680613491421,0.76452839,28253.0,28252.0,0.0231]
[1680613492033,0.77835989,28253.0,28252.0,0.0231]
[1680613492242,1.23099236,28253.0,28252.0,0.0231]
[1680613492442,1.19741394,28253.0,28252.0,0.0231]
[1680613498959,1.20610079,28253.0,28252.0,0.0231]
[1680613501041,0.78367579,28253.0,28252.0,0.0231]
[1680613502374,0.83619679,28253.0,28252.0,0.0231]
[1680613502730,0.83552879,28253.0,28252.0,0.0231]
[1680613503377,0.86973972,28253.0,28252.0,0.0231]
[1680613506396,0.81788672,28253.0,28252.0,0.0231]
[1680613507726,0.86700572,28253.0,28252.0,0.0231]
[1680613508476,0.81788672,28253.0,28252.0,0.0231]
[1680613508721,0.86848372,28253.0,28252.0,0.0231]
[1680613508953,0.86800572,28253.0,28252.0,0.0231]
[1680613509858,0.81788672,28253.0,28252.0,0.0231]
[1680613512411,0.81788672,28253.0,28252.0,0.52116117]
[1680613512412,0.3353324,28253.0,28252.0,0.52116117]
[1680613512652,0.33523911,28253.0,28252.0,0.5711367]
[1680613512851,0.33523911,28253.0,28252.0,0.69857988]
[1680613513364,0.00034284,28253.0,28252.0,0.5712647]
[1680613513594,0.02734284,28253.0,28252.0,0.6467047]
[1680613513860,0.02734284,28253.0,28252.0,0.6467647]
[1680613514094,0.00073926,28254.0,28252.0,0.6457647]
[1680613514338,0.00073926,28254.0,28253.0,0.20220882]
[1680613514565,0.00073926,28254.0,28253.0,0.20238882]
[1680613515011,0.00073926,28254.0,28253.0,0.52583777]
[1680613515237,0.02808238,28254.0,28253.0,0.52595777]
[1680613515723,0.02808238,28254.0,28253.0,0.35649733]
[1680613516191,0.02808238,28254.0,28253.0,0.39864895]
[1680613517105,0.02808238,28254.0,28253.0,0.52590307]
[1680613517938,0.02808238,28254.0,28253.0,0.39864895]
[1680613518776,0.02808238,28254.0,28253.0,0.35639416]
[1680613518993,0.02278238,28254.0,28253.0,0.35621416]
[1680613519392,0.0231255,28254.0,28253.0,0.35621416]
[1680613520980,0.0231255,28254.0,28253.0,0.36406616]
[1680613522785,0.0231255,28254.0,28253.0,0.28916616]
[1680613522981,0.0231255,28254.0,28253.0,0.36346616]
[1680613523210,0.0231255,28254.0,28253.0,0.20935765]
[1680613523445,0.0231255,28254.0,28253.0,0.66751903]
[1680613524377,0.0231255,28254.0,28253.0,0.79467438]
[1680613524600,0.0231255,28254.0,28253.0,0.66751903]
[1680613524824,0.0231255,28254.0,28253.0,0.8155639]
[1680613526199,0.0231255,28254.0,28253.0,0.25161244]
[1680613526422,0.05704243,28254.0,28253.0,0.58189909]
[1680613526866,0.207077,28259.0,28254.0,0.0748]
[1680613527110,0.207077,28259.0,28255.0,0.15913871]
[1680613527328,0.207077,28259.0,28255.0,0.15931871]
[1680613527329,0.007077,28259.0,28255.0,0.15931871]
[1680613527554,0.007077,28259.0,28256.0,0.34305654]
[1680613527788,0.007077,28259.0,28256.0,0.34323654]
[1680613528011,0.014077,28259.0,28256.0,0.34323654]
[1680613528234,2.60603038,28260.0,28258.0,0.0749]
[1680613528467,0.007,28259.0,28258.0,0.0749]
[1680613528686,2.72439246,28260.0,28258.0,0.0749]
[1680613528914,2.72439246,28260.0,28259.0,0.29872681]
[1680613528915,2.45152126,28260.0,28259.0,0.29872681]
[1680613529178,2.45152126,28260.0,28259.0,0.60010681]
[1680613529398,2.45152126,28260.0,28259.0,0.62767044]
[1680613529625,2.45152126,28260.0,28259.0,0.64757044]
[1680613529854,2.45152126,28260.0,28259.0,1.05937928]
[1680613530079,2.45152126,28260.0,28259.0,1.35462803]
[1680613530303,2.45152126,28260.0,28259.0,1.15462803]
[1680613530531,2.48775439,28260.0,28259.0,1.17379738]
[1680613530757,2.48775439,28260.0,28259.0,0.98998854]
[1680613531011,2.48805439,28260.0,28259.0,0.90481505]
[1680613531463,2.48805439,28260.0,28259.0,0.87681505]
[1680613531788,2.48805439,28260.0,28259.0,0.89881505]
[1680613531826,2.48805439,28260.0,28259.0,0.87681505]
[1680613532591,2.50030945,28260.0,28259.0,0.87681505]
[1680613533076,2.50030945,28260.0,28259.0,0.89181505]
[1680613533743,2.50030945,28260.0,28259.0,0.80723223]
[1680613535589,2.50030945,28260.0,28259.0,0.95743223]
[1680613535811,2.50030945,28260.0,28259.0,0.49272304]
[1680613536040,2.50030945,28260.0,28259.0,0.8583618]
[1680613536272,2.50030945,28260.0,28259.0,0.8725158]
[1680613536693,2.50030945,28260.0,28259.0,0.50687704]
[1680613536935,2.50030945,28260.0,28259.0,0.59145986]
[1680613537163,2.50030945,28260.0,28259.0,0.93818339]
[1680613538064,2.50030945,28260.0,28259.0,0.71238339]
[1680613538580,2.50030945,28260.0,28259.0,0.73925614]
[1680613538800,2.50030945,28260.0,28259.0,0.65467332]
[1680613539274,2.50030945,28260.0,28259.0,1.1037666]
[1680613539506,2.50030945,28260.0,28259.0,1.18834942]
[1680613539742,2.50030945,28260.0,28259.0,1.38834942]
[1680613540448,2.50030945,28260.0,28259.0,1.75970942]
[1680613540674,2.50000945,28260.0,28259.0,1.6752466]
[1680613540902,2.50000945,28260.0,28259.0,1.9752466]
[1680613542052,2.50000945,28260.0,28259.0,2.24496441]
[1680613543211,2.50000945,28260.0,28259.0,1.7752466]
[1680613544335,2.50000945,28260.0,28259.0,1.85982942]
[1680613544572,2.50000945,28260.0,28259.0,2.05232083]
[1680613545331,2.50000945,28260.0,28259.0,2.03732083]
[1680613545560,2.50000945,28260.0,28259.0,2.06532083]
[1680613545787,2.50000945,28260.0,28259.0,2.23469018]
[1680613546011,2.50000945,28260.0,28259.0,2.26269018]
[1680613546701,2.50000945,28260.0,28259.0,2.09332083]
[1680613547383,2.50000945,28260.0,28259.0,1.97849018]
[1680613547846,2.50000945,28260.0,28259.0,1.85161595]
[1680613548317,2.50000945,28260.0,28259.0,1.79561595]
[1680613548537,2.50000945,28260.0,28259.0,1.95006171]
[1680613548986,2.50000945,28260.0,28259.0,1.82361595]
[1680613549213,2.50000945,28260.0,28259.0,2.13961595]
[1680613549435,2.50000945,28260.0,28259.0,2.18205544]
[1680613550030,2.50000945,28260.0,28259.0,2.15405544]
[1680613550938,2.50000945,28260.0,28259.0,2.18205544]
[1680613551404,2.50000945,28260.0,28259.0,2.71980682]
[1680613551637,2.50000945,28260.0,28259.0,2.35063878]
[1680613552122,0.08411167,28294.0,28288.0,0.4]
[1680613552366,0.12912919,28302.0,28299.0,0.4]
[1680613552657,0.12912919,28302.0,28299.0,0.37136]
[1680613552658,0.00017,28300.0,28299.0,0.37136]
[1680613552920,0.00017,28300.0,28299.0,0.030044]
[1680613552921,8e-05,28300.0,28299.0,0.030044]
[1680613553153,0.80433996,28300.0,28296.0,6e-05]
[1680613553396,0.052313,28299.0,28294.0,0.021]
[1680613553640,0.0586,28299.0,28294.0,0.021]
[1680613553915,0.20049681,28299.0,28294.0,0.021]
[1680613554159,0.61157835,28298.0,28294.0,0.021]
[1680613554408,0.25322014,28298.0,28294.0,0.021]
[1680613554639,0.25322014,28298.0,28294.0,0.0138]
[1680613554640,0.0584,28295.0,28294.0,0.0138]
[1680613554877,0.0584,28295.0,28286.0,0.12631824]
[1680613554878,0.2,28294.0,28286.0,0.12649824]
[1680613555112,0.28743241,28297.0,28286.0,0.12649824]
[1680613555113,0.14189681,28293.0,28287.0,0.45273987]
[1680613555348,0.0586,28292.0,28287.0,0.007597]
[1680613555575,0.14189681,28292.0,28287.0,0.79151037]
[1680613555818,0.0586,28291.0,28289.0,0.1409]
[1680613556048,0.0589,28291.0,28289.0,0.1409]
[1680613556284,0.15475202,28290.0,28289.0,0.1409]
[1680613556529,0.39260418,28290.0,28289.0,0.1409]
[1680613556994,0.59021343,28290.0,28289.0,0.1409]
[1680613557944,0.60820836,28290.0,28289.0,0.1409]
[1680613558172,0.62020836,28290.0,28289.0,0.1429]
[1680613558405,0.58869849,28290.0,28289.0,0.1429]
[1680613558641,0.63112998,28290.0,28289.0,0.1429]
[1680613558868,0.46997318,28290.0,28289.0,0.1429]
[1680613559332,0.0123,28290.0,28289.0,0.1429]
[1680613559561,0.012,28290.0,28289.0,0.1318]
[1680613559810,0.012,28290.0,28289.0,0.49367456]
[1680613560052,0.42455,28295.0,28290.0,0.01608999]
[1680613560279,0.56983092,28295.0,28290.0,0.37080055]
[1680613560527,0.12710987,28294.0,28291.0,0.16956]
[1680613560756,0.12740987,28294.0,28291.0,0.16956]
[1680613560982,0.16136415,28293.0,28291.0,0.16956]
[1680613561217,0.0003,28293.0,28291.0,0.57217531]
[1680613561446,0.03875685,28293.0,28291.0,0.16956]
[1680613561687,0.03905685,28293.0,28292.0,0.16956]
[1680613561929,0.03905685,28293.0,28292.0,0.26077121]
[1680613562606,0.03905685,28293.0,28292.0,0.09121121]
[1680613562833,0.03905685,28293.0,28292.0,0.26077121]
[1680613563062,0.03905685,28293.0,28292.0,1.25819456]
[1680613563300,0.03905685,28293.0,28292.0,1.17772856]
[1680613563540,0.0003,28296.0,28292.0,1.67732856]
[1680613563778,0.0003,28298.0,28295.0,0.0833]
[1680613564024,0.0003,28299.0,28298.0,0.3713]
[1680613564316,0.0003,28299.0,28298.0,0.85981556]
[1680613564553,0.16888553,28295.0,28293.0,0.00018]
[1680613564785,0.14189681,28294.0,28293.0,0.33472352]
[1680613565025,0.14189681,28294.0,28293.0,0.007293]
[1680613565257,0.007368,28294.0,28293.0,0.007293]
[1680613565497,0.007068,28294.0,28293.0,0.007293]
[1680613565989,0.007068,28294.0,28291.0,0.16956]
[1680613566216,0.007368,28294.0,28291.0,0.16956]
[1680613566450,0.007368,28294.0,28293.0,0.022]
[1680613566682,0.007368,28294.0,28290.0,0.01467699]
[1680613566918,0.16963788,28293.0,28291.0,0.028]
[1680613567141,0.16963788,28293.0,28290.0,0.01467699]
[1680613567142,0.021207,28292.0,28290.0,0.01467699]
[1680613567366,0.021507,28292.0,28290.0,0.01467699]
[1680613568090,0.079907,28292.0,28290.0,0.01467699]
[1680613568312,0.079907,28292.0,28290.0,0.02967699]
[1680613568770,0.065769,28292.0,28291.0,0.007151]
[1680613569001,0.0587,28292.0,28290.0,0.19923699]
[1680613569244,0.23082345,28292.0,28291.0,0.007284]
[1680613569478,0.25855618,28292.0,28291.0,0.007284]
[1680613569708,0.26562518,28292.0,28291.0,0.016284]
[1680613569940,0.09350173,28292.0,28291.0,0.016284]
[1680613570171,0.20430131,28292.0,28291.0,0.37099456]
[1680613570411,0.20460131,28292.0,28291.0,0.37099456]
[1680613572087,0.02803273,28292.0,28291.0,0.37099456]
[1680613572528,0.03510173,28292.0,28291.0,0.016284]
[1680613572764,0.02773273,28292.0,28291.0,0.94165256]
[1680613572997,0.02773273,28292.0,28291.0,1.11121256]
[1680613573245,0.02773273,28292.0,28291.0,1.19451256]
[1680613573474,0.0003,28295.0,28291.0,1.39451256]
[1680613573750,0.238263,28305.0,28293.0,0.3713]
[1680613573751,0.0003,28296.0,28293.0,0.3713]
[1680613573985,0.420633,28303.0,28293.0,0.3713]
[1680613573986,0.00015,28299.0,28294.0,0.72601056]
[1680613574213,0.00015,28299.0,28295.0,0.0085]
[1680613574214,0.0003,28299.0,28295.0,0.0085]
[1680613574448,0.0003,28299.0,28296.0,0.35471056]
[1680613574646,0.0003,28299.0,28296.0,0.94087056]
[1680613574906,0.0003,28299.0,28297.0,0.16956]
[1680613575141,0.0003,28299.0,28297.0,0.52427056]
[1680613575603,0.0003,28299.0,28298.0,0.53277056]
[1680613576336,0.00277335,28302.0,28298.0,0.53277056]
[1680613576570,0.00277335,28302.0,28298.0,0.55477056]
[1680613577042,0.00277335,28302.0,28299.0,0.52171615]
[1680613577524,0.00277335,28302.0,28299.0,0.87642671]
[1680613578221,0.00277335,28302.0,28300.0,0.35471056]
[1680613578693,0.00277335,28302.0,28300.0,0.36884456]
[1680613578921,0.00277335,28302.0,28300.0,0.35471056]
[1680613579390,0.00277335,28302.0,28301.0,0.81801477]
[1680613579626,0.00277335,28302.0,28301.0,1.18122533]
[1680613579868,0.00277335,28302.0,28301.0,1.36485833]
[1680613580086,0.00277335,28302.0,28301.0,1.35072533]
[1680613580549,0.00277335,28302.0,28301.0,0.92014356]
[1680613580770,0.00247335,28302.0,28301.0,0.92014356]
[1680613581453,0.00247335,28302.0,28301.0,1.26068424]
[1680613581675,0.00247335,28302.0,28301.0,0.94614356]
[1680613581904,0.00247335,28302.0,28301.0,0.91814356]
[1680613582124,0.00247335,28302.0,28301.0,0.93201056]
[1680613582360,0.00147335,28302.0,28301.0,0.91820356]
[1680613582591,0.00147335,28302.0,28301.0,0.94614356]
[1680613582817,0.00147335,28302.0,28301.0,0.91814356]
[1680613583033,0.00147335,28302.0,28301.0,0.94614356]
[1680613583551,0.00147335,28302.0,28301.0,1.38142893]
[1680613583787,0.00147335,28302.0,28301.0,0.93201056]
[1680613584030,0.00147335,28302.0,28301.0,0.94614356]
[1680613584268,0.01,28305.0,28301.0,0.94614356]
[1680613584269,0.00990247,28305.0,28301.0,0.94614356]
[1680613584492,0.00990247,28305.0,28302.0,0.35471056]
[1680613584722,0.00990247,28305.0,28303.0,0.0085]
[1680613584959,0.00990247,28305.0,28303.0,0.53271056]
[1680613585186,0.00990247,28305.0,28304.0,0.70085056]
[1680613585416,0.00990247,28305.0,28304.0,0.70935056]
[1680613585640,0.00890247,28305.0,28304.0,0.70935056]
[1680613585864,0.00890247,28305.0,28304.0,0.53271056]
[1680613586116,0.16949325,28305.0,28304.0,0.1695]
[1680613586344,0.16949325,28305.0,28304.0,0.028]
[1680613586345,0.1437327,28305.0,28304.0,0.028]
[1680613586574,0.45604697,28305.0,28304.0,0.028]
[1680613586804,0.36444916,28305.0,28304.0,0.028]
[1680613587476,0.38615269,28305.0,28304.0,0.028]
[1680613587715,0.38615269,28305.0,28302.0,0.4166]
[1680613587939,0.0292,28303.0,28302.0,0.4166]
[1680613588165,0.37236135,28303.0,28301.0,0.00018]
[1680613588393,0.37236135,28303.0,28294.0,0.42838392]
[1680613588394,0.34506477,28302.0,28296.0,0.33917128]
[1680613588630,0.0289,28297.0,28296.0,0.33917128]
[1680613588875,0.17079681,28297.0,28296.0,0.34649728]
[1680613589098,0.0289,28297.0,28296.0,0.33917128]
[1680613589323,0.0289,28297.0,28296.0,0.34639728]
[1680613589551,0.0289,28297.0,28296.0,0.00018]
[1680613589772,0.0289,28297.0,28295.0,0.45990479]
[1680613590007,0.0289,28300.0,28296.0,0.46034538]
[1680613590237,0.0289,28300.0,28296.0,0.62990538]
[1680613590430,0.0289,28300.0,28296.0,0.65208538]
[1680613590690,0.0289,28300.0,28296.0,0.46052538]
[1680613590908,0.16808227,28300.0,28296.0,0.46052538]
[1680613591189,0.16924713,28299.0,28296.0,0.46052538]
[1680613591646,0.16924713,28299.0,28296.0,0.48252538]
[1680613592088,0.0289,28300.0,28296.0,0.48252538]
[1680613592310,0.1839048,28300.0,28297.0,0.33507228]
[1680613592557,0.1839048,28300.0,28297.0,0.33525228]
[1680613592790,0.12450093,28299.0,28297.0,0.00012]
[1680613593010,0.0291,28298.0,28296.0,6e-05]
[1680613593238,0.0292,28297.0,28296.0,0.007229]
[1680613593472,0.0292,28297.0,28296.0,0.007289]
[1680613593709,0.44284534,28297.0,28296.0,0.02206]
[1680613593945,0.35265853,28297.0,28295.0,0.00012]
[1680613594170,0.35265853,28297.0,28294.0,0.25888392]
[1680613594171,0.007067,28297.0,28296.0,0.023]
[1680613594417,0.088253,28297.0,28294.0,0.25882392]
[1680613594641,0.03266843,28297.0,28296.0,0.016]
[1680613594866,0.03266843,28297.0,28294.0,0.25882392]
[1680613594867,0.15187978,28296.0,28294.0,0.25882392]
[1680613595093,0.15894778,28296.0,28295.0,0.002]
[1680613595322,0.18784778,28296.0,28295.0,0.002]
[1680613595535,0.45265421,28296.0,28295.0,0.002]
[1680613595730,0.50111321,28296.0,28295.0,0.002]
[1680613595942,0.50578021,28296.0,28293.0,0.00018]
[1680613596238,0.0292,28294.0,28293.0,0.00018]
[1680613596435,0.0292,28294.0,28293.0,6e-05]
[1680613596665,0.0292,28294.0,28293.0,0.29422256]
[1680613596885,0.0292,28294.0,28293.0,0.61929284]
[1680613597102,0.0292,28294.0,28293.0,0.62029284]
[1680613597316,0.0292,28294.0,28293.0,0.49356256]
[1680613597528,0.0342,28294.0,28293.0,0.49456256]
[1680613598653,0.0342,28294.0,28293.0,0.45275072]
[1680613599541,0.05798323,28294.0,28293.0,0.45275072]
[1680613599962,0.06505123,28294.0,28293.0,0.45275072]
[1680613600187,0.05798323,28294.0,28293.0,0.45275072]
[1680613600658,0.05798323,28294.0,28293.0,0.0855925]
[1680613600880,0.06505123,28294.0,28293.0,0.21221294]
[1680613601099,0.21149474,28294.0,28293.0,0.0855925]
[1680613601784,0.21149474,28294.0,28293.0,0.21221294]
[1680613602214,0.21149474,28294.0,28293.0,0.53707007]
[1680613602683,0.21149474,28294.0,28293.0,0.0855925]
[1680613603573,0.22193257,28294.0,28293.0,0.0855925]
[1680613605386,0.22193257,28294.0,28293.0,0.0854725]
[1680613605611,0.45276776,28294.0,28293.0,0.0854725]
[1680613605840,0.45276776,28294.0,28293.0,0.0855925]
[1680613606749,0.45276776,28294.0,28293.0,0.00118]